[Event "Early-Titled-Tuesday-Blitz-February-06-2024"]
[Site "Chess.com"]
[Date "2024.02.06"]
[Round "2"]
[White "evgchess5"]
[Black "Levanzovsky"]
[Result "1-0"]
[WhiteElo "2979"]
[BlackElo "2520"]
[TimeControl "180+1"]
[EndTime "8:17:43 PST"]
[Termination "evgchess5 won on time"]

1. e4 {[%clk 0:02:36.1]} 1... c5 {[%clk 0:02:59.6]} 2. Nf3 {[%clk 0:02:35.3]}
2... d6 {[%clk 0:03:00]} 3. Bb5+ {[%clk 0:02:35]} 3... Nd7 {[%clk 0:03:00.4]} 4.
d4 {[%clk 0:02:34.4]} 4... cxd4 {[%clk 0:03:00.2]} 5. Qxd4 {[%clk 0:02:35]} 5...
a6 {[%clk 0:03:00.2]} 6. Be2 {[%clk 0:02:35]} 6... Ngf6 {[%clk 0:02:55.8]} 7.
O-O {[%clk 0:02:34.6]} 7... g6 {[%clk 0:02:55.8]} 8. e5 {[%clk 0:02:34.7]} 8...
dxe5 {[%clk 0:02:48.2]} 9. Nxe5 {[%clk 0:02:35.6]} 9... Bg7 {[%clk 0:02:35.8]}
10. Nf3 {[%clk 0:02:35.6]} 10... O-O {[%clk 0:02:32]} 11. Rd1 {[%clk 0:02:35.7]}
11... Qc7 {[%clk 0:02:27.8]} 12. Nc3 {[%clk 0:02:34.7]} 12... Qc6 {[%clk
0:01:43.4]} 13. Be3 {[%clk 0:02:27.2]} 13... b6 {[%clk 0:01:18.4]} 14. Qc4
{[%clk 0:01:34]} 14... Qxc4 {[%clk 0:01:09.1]} 15. Bxc4 {[%clk 0:01:33.8]} 15...
Bb7 {[%clk 0:01:10]} 16. Be2 {[%clk 0:01:33.1]} 16... Rac8 {[%clk 0:01:03.1]}
17. h3 {[%clk 0:01:32.7]} 17... Nc5 {[%clk 0:00:59.3]} 18. Bd4 {[%clk
0:01:29.5]} 18... Rfd8 {[%clk 0:00:54.4]} 19. Ne5 {[%clk 0:01:28.3]} 19... Nfe4
{[%clk 0:00:48]} 20. Nxe4 {[%clk 0:01:27.5]} 20... Nxe4 {[%clk 0:00:48.8]} 21.
c3 {[%clk 0:01:26.5]} 21... b5 {[%clk 0:00:46]} 22. Nf3 {[%clk 0:01:23.4]} 22...
b4 {[%clk 0:00:39.1]} 23. Bxg7 {[%clk 0:01:18.3]} 23... Kxg7 {[%clk 0:00:40]}
24. Rxd8 {[%clk 0:01:16.2]} 24... Rxd8 {[%clk 0:00:39.6]} 25. cxb4 {[%clk
0:01:16.9]} 25... Rc8 {[%clk 0:00:33.8]} 26. Bd3 {[%clk 0:01:14]} 26... Rd8
{[%clk 0:00:31.1]} 27. Rd1 {[%clk 0:01:12.4]} 27... f5 {[%clk 0:00:15.6]} 28.
Kf1 {[%clk 0:01:07.2]} 28... Kf6 {[%clk 0:00:15.9]} 29. Ke1 {[%clk 0:01:06.6]}
29... e5 {[%clk 0:00:15.3]} 30. Bc2 {[%clk 0:00:54.3]} 30... Rc8 {[%clk
0:00:15]} 31. Bb3 {[%clk 0:00:54.4]} 31... g5 {[%clk 0:00:08]} 32. Nh2 {[%clk
0:00:49.8]} 32... h5 {[%clk 0:00:06.7]} 33. f3 {[%clk 0:00:46.7]} 33... Ng3
{[%clk 0:00:06.8]} 34. Nf1 {[%clk 0:00:44.4]} 34... Nxf1 {[%clk 0:00:06.2]} 35.
Kxf1 {[%clk 0:00:44.4]} 35... Ke7 {[%clk 0:00:06.9]} 36. Ke2 {[%clk 0:00:43.3]}
36... h4 {[%clk 0:00:07.2]} 37. a3 {[%clk 0:00:40.6]} 37... e4 {[%clk
0:00:07.4]} 38. fxe4 {[%clk 0:00:38.6]} 38... Bxe4 {[%clk 0:00:08.3]} 39. Kf2
{[%clk 0:00:38.4]} 39... Kf6 {[%clk 0:00:07.3]} 40. Rd6+ {[%clk 0:00:37.2]}
40... Ke5 {[%clk 0:00:07.8]} 41. Rxa6 {[%clk 0:00:34]} 41... Rc1 {[%clk
0:00:07.7]} 42. Re6+ {[%clk 0:00:33.8]} 42... Kf4 {[%clk 0:00:07.7]} 43. Rd6
{[%clk 0:00:34]} 43... Rh1 {[%clk 0:00:04.3]} 44. Rd2 {[%clk 0:00:32.3]} 44...
Rh2 {[%clk 0:00:04.4]} 45. Kg1 {[%clk 0:00:31.4]} 45... Kg3 {[%clk 0:00:03.4]}
46. Bd5 {[%clk 0:00:30.1]} 46... Bxd5 {[%clk 0:00:02.8]} 47. Rd3+ {[%clk
0:00:30.3]} 1-0

[Event "Early-Titled-Tuesday-Blitz-February-06-2024"]
[Site "Chess.com"]
[Date "2024.02.06"]
[Round "2"]
[White "GMAkobianSTL"]
[Black "tandaleo"]
[Result "1-0"]
[WhiteElo "2731"]
[BlackElo "2513"]
[TimeControl "180+1"]
[EndTime "8:17:44 PST"]
[Termination "GMAkobianSTL won by resignation"]

1. d4 {[%clk 0:03:00.9]} 1... d5 {[%clk 0:03:00]} 2. c4 {[%clk 0:02:57.8]} 2...
e6 {[%clk 0:03:00.4]} 3. Nc3 {[%clk 0:02:57.2]} 3... h6 {[%clk 0:03:00.8]} 4.
Nf3 {[%clk 0:02:52.2]} 4... Nf6 {[%clk 0:03:01]} 5. cxd5 {[%clk 0:02:49.4]} 5...
exd5 {[%clk 0:03:01.2]} 6. Bf4 {[%clk 0:02:48.8]} 6... Bd6 {[%clk 0:03:01.4]} 7.
Bg3 {[%clk 0:02:44.7]} 7... O-O {[%clk 0:03:01.7]} 8. e3 {[%clk 0:02:44.4]} 8...
c6 {[%clk 0:02:57.9]} 9. Qc2 {[%clk 0:02:41.1]} 9... Bxg3 {[%clk 0:02:57.4]} 10.
hxg3 {[%clk 0:02:40.4]} 10... Bg4 {[%clk 0:02:56.2]} 11. Ne5 {[%clk 0:02:39.1]}
11... Nbd7 {[%clk 0:02:53.1]} 12. Nxg4 {[%clk 0:02:38.5]} 12... Nxg4 {[%clk
0:02:53.4]} 13. Be2 {[%clk 0:02:31.5]} 13... Ngf6 {[%clk 0:02:53.5]} 14. O-O
{[%clk 0:02:30.2]} 14... Re8 {[%clk 0:02:50.9]} 15. b4 {[%clk 0:02:29.6]} 15...
a6 {[%clk 0:02:48]} 16. a4 {[%clk 0:02:28.9]} 16... b5 {[%clk 0:02:46.1]} 17. a5
{[%clk 0:02:28.9]} 17... Rc8 {[%clk 0:02:36.6]} 18. Rfc1 {[%clk 0:02:27.1]}
18... Ne4 {[%clk 0:02:23.4]} 19. Nxe4 {[%clk 0:02:26.1]} 19... Rxe4 {[%clk
0:02:24.3]} 20. Bd3 {[%clk 0:02:23.1]} 20... Re8 {[%clk 0:02:15.8]} 21. Bf5
{[%clk 0:02:22.1]} 21... Qe7 {[%clk 0:02:06.9]} 22. Qb3 {[%clk 0:02:13]} 22...
g6 {[%clk 0:01:47.7]} 23. Bxd7 {[%clk 0:02:05.6]} 23... Qxd7 {[%clk 0:01:48.1]}
24. Rc5 {[%clk 0:02:04.8]} 24... Re6 {[%clk 0:01:41.5]} 25. Rac1 {[%clk
0:02:04.1]} 25... Rd6 {[%clk 0:01:41.8]} 26. Qc2 {[%clk 0:02:02.9]} 26... Kg7
{[%clk 0:01:41.6]} 27. Qc3 {[%clk 0:02:00.2]} 27... Kh7 {[%clk 0:01:39.6]} 28.
Kf1 {[%clk 0:01:58]} 28... h5 {[%clk 0:01:38.5]} 29. Ke1 {[%clk 0:01:57.3]}
29... Kg7 {[%clk 0:01:34.9]} 30. e4 {[%clk 0:01:46.7]} 30... dxe4 {[%clk
0:01:15.9]} 31. d5+ {[%clk 0:01:46.3]} 31... Kh7 {[%clk 0:01:16.5]} 32. dxc6
{[%clk 0:01:41.8]} 32... Qe6 {[%clk 0:01:16.5]} 33. c7 {[%clk 0:01:02.9]} 33...
Rd3 {[%clk 0:00:28.4]} 34. Qe5 {[%clk 0:01:01.4]} 34... Qd7 {[%clk 0:00:28.7]}
35. R5c2 {[%clk 0:00:23.3]} 35... e3 {[%clk 0:00:17.4]} 36. fxe3 {[%clk
0:00:17.9]} 36... Re8 {[%clk 0:00:17.7]} 37. Qxe8 {[%clk 0:00:17.9]} 37... Qxe8
{[%clk 0:00:17.8]} 38. c8=Q {[%clk 0:00:18.4]} 38... Qxe3+ {[%clk 0:00:15.9]}
39. Kf1 {[%clk 0:00:18.7]} 39... Qxg3 {[%clk 0:00:16.2]} 40. Kg1 {[%clk
0:00:14]} 40... Qe3+ {[%clk 0:00:14.7]} 41. Rf2 {[%clk 0:00:12.6]} 41... Rd2
{[%clk 0:00:13.4]} 42. Rf1 {[%clk 0:00:12.2]} 42... h4 {[%clk 0:00:08.8]} 43.
Qc5 {[%clk 0:00:11.8]} 1-0

[Event "Early-Titled-Tuesday-Blitz-February-06-2024"]
[Site "Chess.com"]
[Date "2024.02.06"]
[Round "2"]
[White "AttilaTurzo"]
[Black "Ati1517"]
[Result "0-1"]
[WhiteElo "2459"]
[BlackElo "2254"]
[TimeControl "180+1"]
[EndTime "8:17:44 PST"]
[Termination "Ati1517 won on time"]

1. e4 {[%clk 0:03:00.9]} 1... c5 {[%clk 0:02:40.7]} 2. Nf3 {[%clk 0:02:59.9]}
2... d6 {[%clk 0:02:41.2]} 3. d4 {[%clk 0:03:00]} 3... cxd4 {[%clk 0:02:41.8]}
4. Nxd4 {[%clk 0:03:00.9]} 4... Nf6 {[%clk 0:02:42.3]} 5. Nc3 {[%clk 0:03:01.3]}
5... a6 {[%clk 0:02:42.9]} 6. Be3 {[%clk 0:03:01.2]} 6... e5 {[%clk 0:02:41.4]}
7. Nf3 {[%clk 0:03:01.4]} 7... Be7 {[%clk 0:02:41.8]} 8. Bc4 {[%clk 0:03:01]}
8... O-O {[%clk 0:02:42]} 9. O-O {[%clk 0:03:00.4]} 9... Be6 {[%clk 0:02:40.5]}
10. Qe2 {[%clk 0:02:56.2]} 10... Nc6 {[%clk 0:02:40.6]} 11. a4 {[%clk
0:02:55.1]} 11... Qc7 {[%clk 0:02:39]} 12. Nd2 {[%clk 0:02:53.1]} 12... Nd4
{[%clk 0:02:32.5]} 13. Qd3 {[%clk 0:02:27.6]} 13... Bxc4 {[%clk 0:02:18.4]} 14.
Nxc4 {[%clk 0:02:24.7]} 14... Rac8 {[%clk 0:02:18.4]} 15. Na3 {[%clk 0:02:07.4]}
15... Ne6 {[%clk 0:02:05.8]} 16. Nd5 {[%clk 0:01:45.4]} 16... Nxd5 {[%clk
0:02:04]} 17. Qxd5 {[%clk 0:01:44.7]} 17... Qc6 {[%clk 0:01:41.5]} 18. c4 {[%clk
0:01:28.9]} 18... Qxd5 {[%clk 0:01:32.8]} 19. exd5 {[%clk 0:01:16.9]} 19... Nc5
{[%clk 0:01:08.2]} 20. Bxc5 {[%clk 0:01:13.6]} 20... Rxc5 {[%clk 0:01:03.5]} 21.
b4 {[%clk 0:01:10.9]} 21... Rc7 {[%clk 0:01:00.9]} 22. a5 {[%clk 0:01:06.2]}
22... Rfc8 {[%clk 0:00:59.5]} 23. Rab1 {[%clk 0:00:56.7]} 23... f5 {[%clk
0:00:56]} 24. f3 {[%clk 0:00:54.4]} 24... Bg5 {[%clk 0:00:53.8]} 25. Kf2 {[%clk
0:00:47.3]} 25... e4 {[%clk 0:00:51.5]} 26. fxe4 {[%clk 0:00:45.2]} 26... fxe4
{[%clk 0:00:51.8]} 27. Ke2 {[%clk 0:00:45.7]} 27... Bf6 {[%clk 0:00:43.5]} 28.
Ke3 {[%clk 0:00:38.7]} 28... Re8 {[%clk 0:00:40.1]} 29. h3 {[%clk 0:00:35.5]}
29... Bg5+ {[%clk 0:00:40.2]} 30. Ke2 {[%clk 0:00:34]} 30... e3 {[%clk
0:00:30.4]} 31. Rb3 {[%clk 0:00:30.5]} 31... Re4 {[%clk 0:00:26.4]} 32. Rf3
{[%clk 0:00:12.3]} 32... Rce7 {[%clk 0:00:23.7]} 33. Rd3 {[%clk 0:00:11.5]}
33... Bf6 {[%clk 0:00:20.5]} 34. b5 {[%clk 0:00:05.9]} 34... Bb2 {[%clk
0:00:17.1]} 35. c5 {[%clk 0:00:02.3]} 35... Bxa3 {[%clk 0:00:15.7]} 36. Rxa3
{[%clk 0:00:02]} 36... dxc5 {[%clk 0:00:16]} 37. bxa6 {[%clk 0:00:02]} 37...
bxa6 {[%clk 0:00:16.1]} 38. Raxe3 {[%clk 0:00:02.4]} 38... Rxe3+ {[%clk
0:00:14.6]} 39. Rxe3 {[%clk 0:00:03.3]} 39... Rxe3+ {[%clk 0:00:14.4]} 40. Kxe3
{[%clk 0:00:03.7]} 40... Kf7 {[%clk 0:00:15.1]} 0-1

[Event "Early-Titled-Tuesday-Blitz-February-06-2024"]
[Site "Chess.com"]
[Date "2024.02.06"]
[Round "2"]
[White "Shivagami"]
[Black "SARGISMV"]
[Result "0-1"]
[WhiteElo "2196"]
[BlackElo "2462"]
[TimeControl "180+1"]
[EndTime "8:17:44 PST"]
[Termination "SARGISMV won on time"]

1. d4 {[%clk 0:03:00.6]} 1... Nf6 {[%clk 0:02:58.7]} 2. c4 {[%clk 0:02:59.8]}
2... c5 {[%clk 0:02:58]} 3. d5 {[%clk 0:02:59.1]} 3... e6 {[%clk 0:02:58.5]} 4.
Nc3 {[%clk 0:02:57.2]} 4... exd5 {[%clk 0:02:58.9]} 5. cxd5 {[%clk 0:02:57.6]}
5... Bd6 {[%clk 0:02:59.4]} 6. e4 {[%clk 0:02:48.5]} 6... O-O {[%clk 0:02:59.3]}
7. Bd3 {[%clk 0:02:47.7]} 7... Bc7 {[%clk 0:02:57.8]} 8. Nge2 {[%clk 0:02:42.5]}
8... d6 {[%clk 0:02:57.8]} 9. O-O {[%clk 0:02:42]} 9... a6 {[%clk 0:02:57.2]}
10. Bg5 {[%clk 0:02:41.7]} 10... h6 {[%clk 0:02:55.8]} 11. Bh4 {[%clk
0:02:40.9]} 11... b5 {[%clk 0:02:55.8]} 12. f4 {[%clk 0:02:33.9]} 12... Nbd7
{[%clk 0:02:55.1]} 13. Ng3 {[%clk 0:02:29.3]} 13... Re8 {[%clk 0:02:41.6]} 14.
Re1 {[%clk 0:02:07.4]} 14... c4 {[%clk 0:02:40.1]} 15. Bc2 {[%clk 0:02:05.4]}
15... Bb6+ {[%clk 0:02:23.2]} 16. Kh1 {[%clk 0:02:05.3]} 16... Qc7 {[%clk
0:01:49.9]} 17. Nf5 {[%clk 0:01:59.5]} 17... b4 {[%clk 0:01:37.6]} 18. Na4
{[%clk 0:01:38.4]} 18... Ba5 {[%clk 0:01:16.9]} 19. Qf3 {[%clk 0:01:37.4]} 19...
b3 {[%clk 0:01:06.4]} 20. Qg3 {[%clk 0:01:05.2]} 20... Nh5 {[%clk 0:00:59.5]}
21. Qg4 {[%clk 0:00:59.4]} 21... Bxe1 {[%clk 0:00:57.3]} 22. Rxe1 {[%clk
0:00:56.4]} 22... g6 {[%clk 0:00:51.8]} 23. axb3 {[%clk 0:00:49.9]} 23... cxb3
{[%clk 0:00:49.5]} 24. Bxb3 {[%clk 0:00:44.9]} 24... Ndf6 {[%clk 0:00:48.3]} 25.
Nxh6+ {[%clk 0:00:28.3]} 25... Kg7 {[%clk 0:00:46.8]} 26. Qg5 {[%clk 0:00:27.5]}
26... Rxe4 {[%clk 0:00:32]} 27. Nc3 {[%clk 0:00:11.7]} 27... Rxe1+ {[%clk
0:00:30.4]} 28. Bxe1 {[%clk 0:00:11.6]} 28... Qb6 {[%clk 0:00:23.6]} 29. Bc2
{[%clk 0:00:09.9]} 29... Qxb2 {[%clk 0:00:21.1]} 30. Bd3 {[%clk 0:00:08.6]}
30... Qc1 {[%clk 0:00:20.6]} 31. Qh4 {[%clk 0:00:06.4]} 31... Kxh6 {[%clk
0:00:17.3]} 32. Ne2 {[%clk 0:00:06.2]} 32... Qe3 {[%clk 0:00:16.1]} 33. Bf2
{[%clk 0:00:04.2]} 33... Qd2 {[%clk 0:00:14.8]} 34. Qg5+ {[%clk 0:00:03.6]}
34... Kg7 {[%clk 0:00:14.6]} 0-1

[Event "Early-Titled-Tuesday-Blitz-February-06-2024"]
[Site "Chess.com"]
[Date "2024.02.06"]
[Round "2"]
[White "tarno17"]
[Black "Keures"]
[Result "0-1"]
[WhiteElo "2109"]
[BlackElo "2428"]
[TimeControl "180+1"]
[EndTime "8:17:45 PST"]
[Termination "Keures won on time"]

1. e4 {[%clk 0:03:00.9]} 1... e6 {[%clk 0:02:59.8]} 2. d4 {[%clk 0:03:00.9]}
2... d5 {[%clk 0:02:59.3]} 3. Nd2 {[%clk 0:03:00.2]} 3... c5 {[%clk 0:02:58.8]}
4. exd5 {[%clk 0:02:58.7]} 4... Qxd5 {[%clk 0:02:59.7]} 5. Ngf3 {[%clk
0:02:54.8]} 5... cxd4 {[%clk 0:02:59.4]} 6. Bc4 {[%clk 0:02:54.1]} 6... Qd7
{[%clk 0:02:59.4]} 7. O-O {[%clk 0:02:52.3]} 7... Nc6 {[%clk 0:02:59.1]} 8. Nb3
{[%clk 0:02:45.2]} 8... Nf6 {[%clk 0:02:58.7]} 9. Nbxd4 {[%clk 0:02:29.2]} 9...
Nxd4 {[%clk 0:02:58]} 10. Qxd4 {[%clk 0:02:30.1]} 10... Qxd4 {[%clk 0:02:56.7]}
11. Nxd4 {[%clk 0:02:31]} 11... a6 {[%clk 0:02:57]} 12. Be2 {[%clk 0:02:26.4]}
12... e5 {[%clk 0:02:50.7]} 13. Nb3 {[%clk 0:02:13.6]} 13... Bd7 {[%clk
0:02:49.3]} 14. Bf3 {[%clk 0:02:07.1]} 14... e4 {[%clk 0:02:49.2]} 15. Re1
{[%clk 0:02:06.5]} 15... Bc6 {[%clk 0:02:49.5]} 16. Na5 {[%clk 0:01:17.2]} 16...
Bb4 {[%clk 0:02:01]} 17. c3 {[%clk 0:00:20.2]} 17... Bxa5 {[%clk 0:01:52.8]} 18.
Bg5 {[%clk 0:00:14.1]} 18... Bd8 {[%clk 0:01:43.8]} 19. Bxf6 {[%clk 0:00:13]}
19... Bxf6 {[%clk 0:01:44.7]} 20. Bxe4 {[%clk 0:00:13.6]} 20... Bxe4 {[%clk
0:01:44.8]} 21. Rxe4+ {[%clk 0:00:14.5]} 21... Kf8 {[%clk 0:01:44.2]} 22. Rae1
{[%clk 0:00:09.4]} 22... g6 {[%clk 0:01:43]} 23. f4 {[%clk 0:00:08.8]} 23... Kg7
{[%clk 0:01:41.6]} 24. g4 {[%clk 0:00:09.2]} 24... h6 {[%clk 0:01:38.6]} 25. Kg2
{[%clk 0:00:07.3]} 25... Rhd8 {[%clk 0:01:37]} 26. R1e2 {[%clk 0:00:07.5]} 26...
Rd7 {[%clk 0:01:35.5]} 27. R4e3 {[%clk 0:00:05.3]} 27... Rad8 {[%clk 0:01:34.1]}
28. Kg3 {[%clk 0:00:05.6]} 28... Rd3 {[%clk 0:01:33]} 29. h4 {[%clk 0:00:05.6]}
29... Rxe3+ {[%clk 0:01:31.2]} 30. Rxe3 {[%clk 0:00:06.5]} 30... Rd2 {[%clk
0:01:30.5]} 31. g5 {[%clk 0:00:06.5]} 31... hxg5 {[%clk 0:01:30.6]} 32. fxg5
{[%clk 0:00:06.1]} 32... Bd8 {[%clk 0:01:29.3]} 33. Re8 {[%clk 0:00:06.4]} 33...
Bc7+ {[%clk 0:01:27.3]} 34. Kg4 {[%clk 0:00:06.5]} 34... Rxb2 {[%clk 0:01:23.8]}
35. h5 {[%clk 0:00:05.8]} 35... gxh5+ {[%clk 0:01:22.8]} 36. Kxh5 {[%clk
0:00:05.8]} 36... Ba5 {[%clk 0:01:19.9]} 37. Rc8 {[%clk 0:00:04.7]} 37... Rxa2
{[%clk 0:01:18.4]} 38. Rb8 {[%clk 0:00:03.8]} 38... Rb2 {[%clk 0:01:18]} 39. Re8
{[%clk 0:00:03.4]} 39... Bxc3 {[%clk 0:01:17]} 40. Re7 {[%clk 0:00:03.3]} 40...
Rh2+ {[%clk 0:01:14.7]} 41. Kg4 {[%clk 0:00:03.6]} 41... b5 {[%clk 0:01:14.5]}
42. Kf5 {[%clk 0:00:03.2]} 42... Rf2+ {[%clk 0:01:12.7]} 43. Kg4 {[%clk
0:00:03]} 43... b4 {[%clk 0:01:13.3]} 44. g6 {[%clk 0:00:02.7]} 44... Rg2+
{[%clk 0:01:12.4]} 45. Kh5 {[%clk 0:00:02.8]} 45... Rxg6 {[%clk 0:01:13.3]} 46.
Rb7 {[%clk 0:00:02.6]} 46... Rg1 {[%clk 0:01:09.9]} 47. Rb6 {[%clk 0:00:02.5]}
47... Ra1 {[%clk 0:01:09.3]} 48. Rc6 {[%clk 0:00:02]} 48... a5 {[%clk
0:00:57.2]} 49. Rc4 {[%clk 0:00:02.5]} 49... a4 {[%clk 0:00:56.8]} 50. Rg4+
{[%clk 0:00:03]} 50... Kf8 {[%clk 0:00:55.8]} 51. Kh6 {[%clk 0:00:03.5]} 51...
a3 {[%clk 0:00:51.8]} 52. Rh4 {[%clk 0:00:01.8]} 52... Rf1 {[%clk 0:00:43.6]}
53. Rh2 {[%clk 0:00:02.1]} 53... b3 {[%clk 0:00:40.2]} 0-1

[Event "Early-Titled-Tuesday-Blitz-February-06-2024"]
[Site "Chess.com"]
[Date "2024.02.06"]
[Round "2"]
[White "AnaKuchava"]
[Black "ATM622"]
[Result "0-1"]
[WhiteElo "2188"]
[BlackElo "2455"]
[TimeControl "180+1"]
[EndTime "8:17:46 PST"]
[Termination "ATM622 won on time"]

1. d4 {[%clk 0:03:00.9]} 1... Nf6 {[%clk 0:02:59.1]} 2. Nf3 {[%clk 0:02:59.2]}
2... e6 {[%clk 0:02:59.2]} 3. c4 {[%clk 0:02:57]} 3... d5 {[%clk 0:02:56.2]} 4.
Nc3 {[%clk 0:02:54.4]} 4... Be7 {[%clk 0:02:53.9]} 5. Bg5 {[%clk 0:02:51.5]}
5... O-O {[%clk 0:02:52.3]} 6. e3 {[%clk 0:02:51.1]} 6... h6 {[%clk 0:02:51.3]}
7. Bh4 {[%clk 0:02:48.8]} 7... Ne4 {[%clk 0:02:51.3]} 8. Bxe7 {[%clk 0:02:47.1]}
8... Qxe7 {[%clk 0:02:50.4]} 9. Rc1 {[%clk 0:02:44.5]} 9... Nxc3 {[%clk
0:02:45]} 10. Rxc3 {[%clk 0:02:43.4]} 10... dxc4 {[%clk 0:02:42.6]} 11. Bxc4
{[%clk 0:02:41.8]} 11... Nd7 {[%clk 0:02:38.9]} 12. O-O {[%clk 0:02:41.1]} 12...
c5 {[%clk 0:02:34.2]} 13. Qe2 {[%clk 0:02:28.2]} 13... a6 {[%clk 0:02:29.1]} 14.
a4 {[%clk 0:02:22.9]} 14... Rb8 {[%clk 0:02:15.3]} 15. Rfc1 {[%clk 0:02:12.2]}
15... cxd4 {[%clk 0:02:05.6]} 16. Nxd4 {[%clk 0:01:53.8]} 16... Ne5 {[%clk
0:01:56.2]} 17. Bb3 {[%clk 0:01:28.2]} 17... Bd7 {[%clk 0:01:50]} 18. f4 {[%clk
0:01:08.2]} 18... Nc6 {[%clk 0:01:48.1]} 19. Nf3 {[%clk 0:01:05.5]} 19... Rfc8
{[%clk 0:01:42.3]} 20. Kf2 {[%clk 0:00:48.6]} 20... e5 {[%clk 0:01:21.2]} 21.
fxe5 {[%clk 0:00:34]} 21... Nxe5 {[%clk 0:01:19.7]} 22. Nxe5 {[%clk 0:00:34.9]}
22... Qxe5 {[%clk 0:01:17.8]} 23. Qf3 {[%clk 0:00:29.2]} 23... Rf8 {[%clk
0:00:51.9]} 24. Rd1 {[%clk 0:00:13.8]} 24... Bc6 {[%clk 0:00:47.8]} 25. Qf4
{[%clk 0:00:14.1]} 25... Qxf4+ {[%clk 0:00:44.4]} 26. exf4 {[%clk 0:00:15]}
26... Rfd8 {[%clk 0:00:44.3]} 27. Rcd3 {[%clk 0:00:14.2]} 27... Rxd3 {[%clk
0:00:43.6]} 28. Rxd3 {[%clk 0:00:15.1]} 28... Kf8 {[%clk 0:00:43.6]} 29. g3
{[%clk 0:00:07.5]} 29... f5 {[%clk 0:00:34.3]} 30. a5 {[%clk 0:00:07.4]} 30...
Rc8 {[%clk 0:00:25.8]} 31. Ke3 {[%clk 0:00:06]} 31... Re8+ {[%clk 0:00:19.4]}
32. Kf2 {[%clk 0:00:05.9]} 32... Re4 {[%clk 0:00:15.5]} 33. Re3 {[%clk
0:00:02.7]} 33... Rb4 {[%clk 0:00:14.6]} 34. Ke2 {[%clk 0:00:01.5]} 34... Be4
{[%clk 0:00:13.6]} 35. Kd2 {[%clk 0:00:01.8]} 35... Rb5 {[%clk 0:00:10.9]} 36.
Rc3 {[%clk 0:00:02.1]} 36... g5 {[%clk 0:00:05.9]} 0-1

[Event "Early-Titled-Tuesday-Blitz-February-06-2024"]
[Site "Chess.com"]
[Date "2024.02.06"]
[Round "2"]
[White "stratacticos"]
[Black "RCone"]
[Result "0-1"]
[WhiteElo "2043"]
[BlackElo "2424"]
[TimeControl "180+1"]
[EndTime "8:17:47 PST"]
[Termination "RCone won on time"]

1. e4 {[%clk 0:03:00.1]} 1... d6 {[%clk 0:02:58.9]} 2. d4 {[%clk 0:02:58]} 2...
Nf6 {[%clk 0:02:58.8]} 3. Nc3 {[%clk 0:02:57.7]} 3... g6 {[%clk 0:02:59]} 4. Be2
{[%clk 0:02:56.3]} 4... Bg7 {[%clk 0:02:57.3]} 5. Be3 {[%clk 0:02:55.7]} 5...
O-O {[%clk 0:02:54]} 6. Qd2 {[%clk 0:02:55.3]} 6... e5 {[%clk 0:02:53.2]} 7. Nf3
{[%clk 0:02:48.7]} 7... Nc6 {[%clk 0:02:48.4]} 8. d5 {[%clk 0:02:47]} 8... Ne7
{[%clk 0:02:42.7]} 9. h3 {[%clk 0:02:42.7]} 9... Ne8 {[%clk 0:02:33.1]} 10. g4
{[%clk 0:02:40]} 10... c6 {[%clk 0:02:31]} 11. O-O-O {[%clk 0:02:37.7]} 11...
cxd5 {[%clk 0:02:31]} 12. Nxd5 {[%clk 0:02:37.3]} 12... Be6 {[%clk 0:02:18.5]}
13. c4 {[%clk 0:02:34.9]} 13... Nxd5 {[%clk 0:01:57.6]} 14. cxd5 {[%clk
0:02:34.1]} 14... Bd7 {[%clk 0:01:57.5]} 15. Kb1 {[%clk 0:02:31.2]} 15... a6
{[%clk 0:01:49.8]} 16. Bh6 {[%clk 0:02:19.6]} 16... Nf6 {[%clk 0:01:40.8]} 17.
Bxg7 {[%clk 0:02:16.7]} 17... Kxg7 {[%clk 0:01:41.7]} 18. Qe3 {[%clk 0:02:14.9]}
18... Rc8 {[%clk 0:01:38.3]} 19. Rc1 {[%clk 0:02:13.3]} 19... Qa5 {[%clk
0:01:35.2]} 20. Qd2 {[%clk 0:02:08.9]} 20... Qa4 {[%clk 0:01:24]} 21. Bd3 {[%clk
0:01:31.5]} 21... Nxe4 {[%clk 0:01:21.7]} 22. Qe3 {[%clk 0:01:30.1]} 22... Nf6
{[%clk 0:01:13.3]} 23. Nxe5 {[%clk 0:00:58.8]} 23... dxe5 {[%clk 0:00:41.6]} 24.
Qxe5 {[%clk 0:00:53]} 24... Rfe8 {[%clk 0:00:37]} 25. Qd6 {[%clk 0:00:44.3]}
25... Bb5 {[%clk 0:00:27.6]} 26. Bc2 {[%clk 0:00:33.8]} 26... Qd4 {[%clk
0:00:27.4]} 27. Rhd1 {[%clk 0:00:31.4]} 27... Qe5 {[%clk 0:00:26.2]} 28. Qxe5
{[%clk 0:00:29]} 28... Rxe5 {[%clk 0:00:27.1]} 29. d6 {[%clk 0:00:27.5]} 29...
Rd8 {[%clk 0:00:25.6]} 30. f4 {[%clk 0:00:23]} 30... Rd5 {[%clk 0:00:24.8]} 31.
Rxd5 {[%clk 0:00:20]} 31... Nxd5 {[%clk 0:00:24.9]} 32. Be4 {[%clk 0:00:16.1]}
32... Rxd6 {[%clk 0:00:23.6]} 33. f5 {[%clk 0:00:11.6]} 33... Bc6 {[%clk
0:00:20.3]} 34. Bxd5 {[%clk 0:00:09.5]} 34... Rxd5 {[%clk 0:00:20]} 35. fxg6
{[%clk 0:00:10.4]} 35... hxg6 {[%clk 0:00:19.7]} 36. h4 {[%clk 0:00:08.9]} 36...
Rd4 {[%clk 0:00:19.6]} 37. Rg1 {[%clk 0:00:08.4]} 37... Be4+ {[%clk 0:00:18]}
38. Kc1 {[%clk 0:00:07.4]} 38... b5 {[%clk 0:00:18.2]} 39. h5 {[%clk 0:00:06.7]}
39... g5 {[%clk 0:00:18]} 40. Re1 {[%clk 0:00:04.1]} 40... Bf3 {[%clk
0:00:17.8]} 0-1